bitfinex-derivatives/quotes_BTCF0:USTF0_20210705
["timestamp","ask_amount","ask_price","bid_price","bid_amount"]
[1625463291540,0.08206341,34125.0,34122.0,0.34782865]
[1625463291641,0.08206341,34125.0,34122.0,0.44782865]
[1625463291642,0.14106341,34125.0,34122.0,0.44782865]
[1625463291739,0.14106341,34125.0,34122.0,0.79668865]
[1625463291840,0.34508201,34124.0,34123.0,0.34353898]
[1625463292041,0.34508201,34124.0,34123.0,0.40686322]
[1625463292342,0.34518558,34125.0,34123.0,0.06332424]
[1625463292542,0.40418558,34125.0,34123.0,0.06332424]
[1625463292642,0.40418558,34125.0,34123.0,0.16332424]
[1625463292745,0.059,34125.0,34123.0,0.16332424]
[1625463292842,0.059,34125.0,34124.0,0.00432396]
[1625463292942,0.059,34125.0,34124.0,0.06332396]
[1625463293148,0.059,34125.0,34124.0,0.54447484]
[1625463293995,0.059,34125.0,34124.0,0.64447484]
[1625463294295,0.061,34125.0,34124.0,0.64447484]
[1625463296604,0.40645727,34125.0,34124.0,0.64447484]
[1625463297254,0.57727261,34125.0,34124.0,0.64447484]
[1625463298261,0.23181534,34125.0,34124.0,1.84740803]
[1625463298361,0.23181534,34125.0,34124.0,2.05724803]
[1625463298862,0.57747038,34125.0,34124.0,2.05724803]
[1625463299263,0.40465504,34125.0,34124.0,2.05724803]
[1625463300065,0.57758329,34125.0,34124.0,2.05724803]
[1625463302119,0.57758329,34125.0,34124.0,6.12674803]
[1625463303521,0.57758329,34125.0,34124.0,2.05724803]
[1625463303620,0.57758329,34125.0,34124.0,1.84740803]
[1625463304075,0.059,34125.0,34124.0,1.84740803]
[1625463304423,0.059,34125.0,34124.0,2.07755803]
[1625463305579,0.059,34125.0,34124.0,3.45543302]
[1625463306077,0.40518535,34125.0,34124.0,3.45543302]
[1625463307582,0.059,34125.0,34124.0,3.45543302]
[1625463308032,0.059,34125.0,34124.0,3.39643302]
[1625463308135,0.059,34125.0,34124.0,3.45543302]
[1625463308735,0.004,34128.0,34124.0,3.45543302]
[1625463308833,0.004,34128.0,34124.0,3.51443302]
[1625463309033,0.004,34128.0,34124.0,5.06673192]
[1625463309233,0.004,34128.0,34125.0,0.00431201]
[1625463309335,0.004,34128.0,34127.0,0.23857544]
[1625463309432,0.004,34128.0,34127.0,0.35657544]
[1625463309634,0.004,34128.0,34127.0,1.7367128]
[1625463309742,0.004,34128.0,34127.0,1.74102369]
[1625463309934,0.004,34128.0,34127.0,1.75141983]
[1625463310236,1.39169465,34130.0,34128.0,0.055]
[1625463310335,1.39169465,34130.0,34128.0,0.114]
[1625463310336,0.006,34130.0,34128.0,0.114]
[1625463310435,0.006,34130.0,34129.0,4.4979]
[1625463310538,0.006,34130.0,34129.0,4.56121013]
[1625463310636,0.006,34130.0,34129.0,4.63060092]
[1625463310786,0.006,34130.0,34129.0,9.28998978]
[1625463311289,0.006,34130.0,34129.0,7.80486564]
[1625463311688,0.006,34130.0,34129.0,9.52919525]
[1625463311790,0.006,34130.0,34129.0,10.21892709]
[1625463311888,0.006,34130.0,34129.0,10.31892709]
[1625463312092,0.008,34132.0,34131.0,0.053]
[1625463312191,0.008,34132.0,34131.0,0.34361347]
[1625463312389,0.008,34132.0,34131.0,0.33361347]
[1625463312489,0.1832718,34134.0,34131.0,0.33792319]
[1625463312590,0.51966059,34135.0,34131.0,3.95827143]
[1625463312791,0.51966059,34135.0,34132.0,0.01037951]
[1625463312890,0.51966059,34135.0,34132.0,0.06937951]
[1625463312991,0.51966059,34135.0,34132.0,0.13268915]
[1625463313194,0.51966059,34135.0,34133.0,0.01037896]
[1625463313291,0.17327198,34136.0,34134.0,4.10079996]
[1625463313390,0.01914284,34137.0,34134.0,4.25979996]
[1625463313490,0.01914284,34137.0,34134.0,4.32310954]
[1625463313791,0.69184853,34140.0,34136.0,3.61396676]
[1625463313891,0.69184853,34140.0,34136.0,3.67296676]
[1625463313993,0.69184853,34140.0,34136.0,3.73196676]
[1625463314093,0.69184853,34140.0,34137.0,0.00431841]
[1625463314191,0.69184853,34140.0,34137.0,0.12231841]
[1625463314391,0.69184853,34140.0,34139.0,2.16378101]
[1625463314493,0.69184853,34140.0,34139.0,2.52637101]
[1625463315344,0.69184853,34140.0,34139.0,1.63166788]
[1625463315644,0.69184853,34140.0,34139.0,1.63598594]
[1625463315898,0.69124911,34143.0,34139.0,3.00859191]
[1625463316195,0.69124911,34143.0,34140.0,0.00431797]
[1625463316294,0.69124911,34143.0,34140.0,0.06331797]
[1625463316395,0.69123589,34144.0,34142.0,0.68616535]
[1625463316494,0.69123589,34144.0,34142.0,0.74516535]
[1625463316596,0.69123589,34144.0,34142.0,0.80416535]
[1625463316993,0.69123589,34144.0,34143.0,0.1]
[1625463317097,0.69123589,34144.0,34143.0,0.218]
[1625463317196,1.38232545,34148.0,34143.0,0.90433467]
[1625463317295,1.38232545,34148.0,34147.0,0.72172632]
[1625463317399,1.38232545,34148.0,34147.0,0.78072632]
[1625463317899,2.07301658,34148.0,34147.0,0.78072632]
[1625463317996,2.07301658,34148.0,34147.0,4.96503632]
[1625463318297,2.07301658,34148.0,34147.0,5.06503632]
[1625463321005,0.69069113,34148.0,34147.0,5.06503632]
[1625463321407,0.69069113,34148.0,34147.0,5.12403632]
[1625463321758,1.72595646,34148.0,34147.0,5.12403632]
[1625463325619,1.37890781,34151.0,34147.0,5.12403632]
[1625463326121,1.37890781,34151.0,34147.0,5.02403632]
[1625463326271,1.72356066,34160.0,34147.0,5.02403632]
[1625463326272,1.0340245,34153.0,34147.0,6.05110132]
[1625463326480,0.9832245,34153.0,34147.0,6.05110132]
[1625463326574,0.9832245,34153.0,34147.0,6.13980132]
[1625463326671,0.9472245,34153.0,34147.0,6.13980132]
[1625463326921,0.5717245,34153.0,34147.0,6.13980132]
[1625463327025,1.55095059,34160.0,34148.0,0.00431823]
[1625463327123,1.55095059,34160.0,34152.0,0.1]
[1625463327235,1.37753833,34161.0,34152.0,0.218]
[1625463327424,1.37753833,34161.0,34160.0,0.78072632]
[1625463327524,1.37753833,34161.0,34160.0,1.07691632]
[1625463327623,1.29643833,34161.0,34160.0,1.13591632]
[1625463327824,1.54938445,34172.0,34160.0,1.13591632]
[1625463328424,1.54938445,34172.0,34171.0,0.1]
[1625463328825,1.54938445,34172.0,34160.0,1.07491632]
[1625463328927,1.54938445,34172.0,34160.0,1.19291632]
[1625463329228,1.20514684,34166.0,34160.0,1.19291632]
[1625463329327,1.20514684,34166.0,34160.0,0.83972632]
[1625463329430,1.20514684,34166.0,34165.0,0.48115088]
[1625463329627,1.20514684,34166.0,34165.0,0.58115088]
[1625463330130,1.20514684,34166.0,34165.0,0.64015088]
[1625463330230,1.20514684,34166.0,34165.0,0.58115088]
[1625463330330,1.20514684,34166.0,34165.0,0.64015088]
[1625463330632,1.20514684,34166.0,34165.0,0.69915088]
[1625463330931,1.20514684,34166.0,34165.0,0.64015088]
[1625463332383,1.20514684,34166.0,34165.0,0.69915088]
[1625463332585,1.20514684,34166.0,34165.0,0.64015088]
[1625463334138,1.20198742,34167.0,34165.0,0.64015088]
[1625463334590,1.20198742,34167.0,34165.0,0.54015088]
[1625463334691,1.2019926,34166.0,34165.0,0.54015088]
[1625463334892,1.2019926,34166.0,34165.0,0.59915088]
[1625463334996,1.2019926,34166.0,34165.0,0.54015088]
[1625463335241,1.2019926,34166.0,34165.0,0.59915088]
[1625463335442,1.20139363,34167.0,34165.0,0.59915088]
[1625463335541,1.20139363,34167.0,34165.0,0.69915088]
[1625463335945,1.20139363,34167.0,34165.0,0.64015088]
[1625463336045,1.20139363,34167.0,34165.0,0.69915088]
[1625463336146,1.20135618,34168.0,34165.0,0.59915088]
[1625463336648,1.20131805,34169.0,34165.0,0.59915088]
[1625463336849,1.20131805,34169.0,34165.0,0.54015088]
[1625463337049,1.20131805,34169.0,34167.0,0.1]
[1625463337402,1.20131805,34169.0,34165.0,0.48115088]
[1625463337502,1.20141242,34168.0,34166.0,0.24057544]
[1625463337601,1.20141242,34168.0,34166.0,0.29957544]
[1625463338003,1.20106365,34167.0,34166.0,0.29957544]
[1625463338302,1.20106365,34167.0,34166.0,5.42447544]
[1625463338404,1.20106365,34167.0,34166.0,0.29957544]
[1625463338503,1.20100666,34168.0,34166.0,0.29957544]
[1625463338604,1.20100666,34168.0,34166.0,0.35857544]
[1625463339058,1.20100666,34168.0,34167.0,3.9346]
[1625463339509,1.20100666,34168.0,34167.0,3.8346]
[1625463339608,1.20100666,34168.0,34166.0,0.24057544]
[1625463339708,1.20100666,34168.0,34166.0,0.29957544]
[1625463340512,0.51469011,34167.0,34166.0,0.29957544]
[1625463341161,1.71540648,34167.0,34166.0,0.29957544]
[1625463341563,1.71540648,34167.0,34166.0,0.39957544]
[1625463342264,1.71540648,34167.0,34166.0,4.21297544]
[1625463342415,0.51469011,34167.0,34166.0,4.21297544]
[1625463342866,0.51469011,34167.0,34166.0,0.39957544]
[1625463343372,0.51469011,34167.0,34166.0,0.45857544]
[1625463343474,1.71507336,34167.0,34166.0,0.39957544]
[1625463343623,1.71507336,34167.0,34166.0,0.45857544]
[1625463343827,0.51469011,34167.0,34166.0,0.39957544]
[1625463345882,0.51469011,34167.0,34166.0,0.45857544]
[1625463346486,0.51469011,34167.0,34166.0,0.39957544]
[1625463346735,0.51469011,34167.0,34166.0,0.45857544]
[1625463347036,0.51469011,34167.0,34166.0,0.39957544]
[1625463347134,0.51469011,34167.0,34166.0,0.45857544]
[1625463347537,0.52936554,34167.0,34166.0,0.45857544]
[1625463347636,0.52936554,34167.0,34166.0,5.29487544]
[1625463347789,0.52936554,34167.0,34166.0,0.45857544]
[1625463349297,0.52936554,34167.0,34166.0,0.39957544]
[1625463349789,0.52936554,34167.0,34166.0,0.45857544]
[1625463350592,0.52936554,34167.0,34166.0,0.39957544]
[1625463351145,0.52936554,34167.0,34166.0,0.34057544]
[1625463352396,0.52936554,34167.0,34166.0,0.39957544]
[1625463352497,0.52936554,34167.0,34166.0,0.34057544]
[1625463352798,0.77820554,34167.0,34166.0,0.34057544]
[1625463352897,0.83720554,34167.0,34166.0,0.34057544]
[1625463352997,0.89620554,34167.0,34166.0,0.34057544]
[1625463353199,2.03791436,34167.0,34166.0,0.34057544]
[1625463353599,3.35128723,34167.0,34166.0,0.34057544]
[1625463355005,3.41028723,34167.0,34166.0,0.34057544]
[1625463355454,3.44497925,34167.0,34166.0,0.34057544]
[1625463356759,3.38597925,34167.0,34166.0,0.34057544]
[1625463357209,4.41608158,34167.0,34166.0,0.34057544]
[1625463357962,4.47508158,34167.0,34166.0,0.34057544]
[1625463358713,4.41608158,34167.0,34166.0,0.34057544]
[1625463359971,5.96269863,34167.0,34166.0,0.34057544]
[1625463360619,6.02169863,34167.0,34166.0,0.34057544]
[1625463362527,5.96269863,34167.0,34166.0,0.34057544]
[1625463364082,4.41608158,34167.0,34166.0,0.34057544]
[1625463364487,5.96399703,34167.0,34166.0,0.34057544]
[1625463367993,5.96399703,34167.0,34166.0,5.57367544]
[1625463368444,5.96399703,34167.0,34166.0,0.34057544]
[1625463370347,6.02299703,34167.0,34166.0,0.34057544]
[1625463370447,5.96399703,34167.0,34166.0,0.34057544]
[1625463371098,7.69008628,34167.0,34166.0,0.34057544]
[1625463373606,7.74908628,34167.0,34166.0,0.34057544]
[1625463374406,7.69008628,34167.0,34166.0,0.34057544]
[1625463376510,7.74908628,34167.0,34166.0,0.34057544]
[1625463376910,7.69008628,34167.0,34166.0,0.34057544]
[1625463379016,7.65539426,34167.0,34166.0,0.34057544]
[1625463379127,5.92930501,34167.0,34166.0,0.34057544]
[1625463379214,5.92930501,34167.0,34166.0,0.39957544]
[1625463379421,5.92930501,34167.0,34166.0,0.34057544]
[1625463379814,5.96399185,34167.0,34166.0,0.34057544]
[1625463381120,5.92930501,34167.0,34166.0,0.34057544]
[1625463381220,7.65857273,34167.0,34166.0,0.34057544]
[1625463381569,5.92930501,34167.0,34166.0,0.34057544]
[1625463381919,7.69330716,34167.0,34166.0,0.34057544]
[1625463382522,7.65862048,34167.0,34166.0,0.34057544]
[1625463382823,5.92930501,34167.0,34166.0,0.34057544]
[1625463382922,5.92930501,34167.0,34166.0,5.53827544]
[1625463383122,5.92930501,34167.0,34166.0,5.59727544]
[1625463383574,5.92930501,34167.0,34166.0,0.39957544]
[1625463385729,6.62195195,34167.0,34166.0,0.39957544]
[1625463393698,6.62195195,34167.0,34166.0,0.66397544]
[1625463394048,6.62195195,34167.0,34166.0,5.24757544]
[1625463394600,6.37311195,34167.0,34166.0,5.24757544]
[1625463394701,6.37311195,34167.0,34166.0,6.50610816]
[1625463395002,6.37311195,34167.0,34166.0,6.51043043]
[1625463395352,4.8251965,34167.0,34166.0,8.73603834]
[1625463395451,4.81052107,34167.0,34166.0,8.73603834]
[1625463397655,4.81052107,34167.0,34166.0,7.53763408]
[1625463399306,3.4381482,34167.0,34166.0,8.73455512]
[1625463400360,3.4381482,34167.0,34166.0,7.53763408]
[1625463401111,3.4381482,34167.0,34166.0,8.73342377]
[1625463401513,2.23743938,34167.0,34166.0,8.73342377]
[1625463403312,1.83223938,34167.0,34166.0,8.73342377]
[1625463404118,0.10949011,34167.0,34166.0,10.09888302]
[1625463404567,0.69102577,34169.0,34166.0,10.09888302]
[1625463404866,0.69102577,34169.0,34167.0,0.00432568]
[1625463404965,0.69102577,34169.0,34167.0,0.12232568]
[1625463405167,0.69102577,34169.0,34168.0,2.9007574]
[1625463405267,0.69102577,34169.0,34168.0,2.9597574]
[1625463405366,0.69102577,34169.0,34168.0,3.02308308]
[1625463405817,0.69102577,34169.0,34168.0,3.26365852]
[1625463406219,0.69102577,34169.0,34168.0,3.36365852]
[1625463406919,0.69102577,34169.0,34168.0,3.35933284]
[1625463407375,0.69102577,34169.0,34168.0,2.16490332]
[1625463407376,1.72703098,34169.0,34168.0,2.16490332]
[1625463407778,1.72703098,34169.0,34168.0,2.10590332]
[1625463407876,1.72703098,34169.0,34168.0,1.08210659]
[1625463407877,2.93555152,34169.0,34168.0,1.08210659]
[1625463407975,2.93555152,34169.0,34168.0,1.02310659]
[1625463408276,2.99455152,34169.0,34168.0,1.02310659]
[1625463408377,2.93555152,34169.0,34168.0,1.02310659]
[1625463408577,4.33142109,34169.0,34168.0,0.34057544]
[1625463409078,5.94434503,34169.0,34168.0,0.34057544]
[1625463409278,5.88534503,34169.0,34168.0,0.34057544]
[1625463410687,6.20481503,34169.0,34168.0,0.34057544]
[1625463411183,6.20481503,34169.0,34168.0,0.39957544]
[1625463411282,6.03976426,34169.0,34168.0,0.45857544]
[1625463411484,6.01911379,34169.0,34168.0,0.4629013]
[1625463411583,5.96951379,34169.0,34168.0,0.4629013]
[1625463411782,5.96951379,34169.0,34168.0,0.45857544]
[1625463411882,4.41558985,34169.0,34168.0,0.45857544]
[1625463411985,1.82585021,34169.0,34168.0,2.16923063]
[1625463412084,1.82585021,34169.0,34168.0,2.11023063]
[1625463412283,1.82585021,34169.0,34168.0,2.0469046]
[1625463412483,1.82585021,34169.0,34168.0,0.34057544]
[1625463412484,3.03402145,34169.0,34168.0,0.34057544]
[1625463412586,3.03402145,34169.0,34168.0,0.39957544]
[1625463412684,3.03402145,34169.0,34168.0,0.34057544]
[1625463413089,4.41483096,34169.0,34168.0,0.34057544]
[1625463413588,4.48848121,34169.0,34168.0,0.34057544]
[1625463413889,5.21020753,34169.0,34168.0,0.34057544]
[1625463413989,5.26920753,34169.0,34168.0,0.34057544]
[1625463414090,10.4683125,34169.0,34168.0,0.34057544]
[1625463414843,6.8228125,34169.0,34168.0,0.34057544]
[1625463415843,6.8228125,34169.0,34168.0,0.1]
[1625463416296,6.7638125,34169.0,34168.0,0.1]
[1625463416697,6.52323706,34169.0,34168.0,0.1]
[1625463417096,6.46423706,34169.0,34168.0,0.1]
[1625463417948,6.46423706,34169.0,34168.0,0.58115088]
[1625463418148,6.52323706,34169.0,34168.0,0.58115088]
[1625463418248,6.44958681,34169.0,34168.0,0.58115088]
[1625463418449,6.46423813,34169.0,34168.0,0.58115088]
[1625463419254,6.46423813,34169.0,34168.0,0.64015088]
[1625463419454,4.91063316,34169.0,34168.0,0.64015088]
[1625463419553,4.91063316,34169.0,34168.0,0.58115088]
[1625463420606,6.46462798,34169.0,34168.0,0.58115088]
[1625463422468,6.52362798,34169.0,34168.0,0.58115088]
[1625463423013,6.46462798,34169.0,34168.0,0.58115088]
[1625463423568,4.91063316,34169.0,34168.0,0.58115088]
[1625463424017,6.46476423,34169.0,34168.0,0.58115088]
[1625463424868,6.52376423,34169.0,34168.0,0.58115088]
[1625463424968,6.46476423,34169.0,34168.0,0.58115088]
[1625463425970,4.91063316,34169.0,34168.0,0.58115088]
[1625463426922,4.42948228,34169.0,34168.0,0.58115088]
[1625463427036,4.41483096,34169.0,34168.0,0.69915088]
[1625463427324,4.41483096,34169.0,34168.0,0.7034772]
[1625463427527,1.82585021,34169.0,34168.0,1.72794287]
[1625463427627,1.50638021,34169.0,34168.0,1.72794287]
[1625463427926,1.50638021,34169.0,34168.0,1.96851831]
[1625463428228,1.03610743,34171.0,34168.0,3.16299531]
[1625463428626,1.03610743,34171.0,34169.0,0.00432591]
[1625463428726,1.03610743,34171.0,34170.0,1.02391239]
[1625463428827,1.03610743,34171.0,34170.0,1.08291239]
[1625463428927,1.03610743,34171.0,34170.0,1.14191239]
[1625463429398,1.03610743,34171.0,34170.0,1.08291239]
[1625463429583,1.03610743,34171.0,34170.0,1.02391239]
[1625463429831,1.03610743,34171.0,34170.0,1.12391239]
[1625463429931,1.27668287,34171.0,34170.0,1.12391239]
[1625463430032,3.88142114,34171.0,34170.0,0.1]
[1625463430234,3.866773,34171.0,34170.0,0.1]
[1625463431033,3.88142114,34171.0,34170.0,0.1]
[1625463431334,3.866773,34171.0,34170.0,0.218]
[1625463431433,3.866773,34171.0,34170.0,0.159]
[1625463431884,3.866773,34171.0,34170.0,0.24444856]
[1625463431983,3.62619756,34171.0,34170.0,0.24444856]
[1625463432634,3.62619756,34171.0,34170.0,0.30344856]
[1625463432787,3.62619756,34171.0,34170.0,0.218]
[1625463432886,3.62619756,34171.0,34170.0,0.159]
[1625463433386,3.62619756,34171.0,34170.0,0.24445249]
[1625463433989,3.62619756,34171.0,34170.0,0.30345249]
[1625463434089,3.90568756,34171.0,34170.0,0.30345249]
[1625463434289,3.90568756,34171.0,34170.0,0.24445249]
[1625463434392,3.90568756,34171.0,34170.0,0.18545249]
[1625463434940,3.92033694,34171.0,34170.0,0.18545249]
[1625463435241,3.90568756,34171.0,34170.0,0.1]
[1625463435494,3.92033708,34171.0,34170.0,0.1]
[1625463435644,3.92033708,34171.0,34170.0,0.18547571]
[1625463435745,3.90568756,34171.0,34170.0,0.18547571]
[1625463435996,3.92033716,34171.0,34170.0,0.18547571]
[1625463436699,3.92033716,34171.0,34170.0,0.159]
[1625463437252,3.92033716,34171.0,34170.0,0.24448848]
[1625463437801,3.92033716,34171.0,34170.0,0.52747099]
[1625463437901,3.92033716,34171.0,34170.0,0.58647099]
[1625463438205,3.92033716,34171.0,34170.0,0.52747099]
[1625463438302,3.92033716,34171.0,34170.0,0.44198251]
[1625463438402,3.92033716,34171.0,34170.0,0.50098251]
[1625463438502,3.64084716,34171.0,34170.0,0.50098251]
[1625463438602,3.64084716,34171.0,34170.0,0.44198251]
[1625463438702,3.64084716,34171.0,34170.0,0.50098251]
[1625463438903,3.64084716,34171.0,34170.0,0.44198251]
[1625463439003,3.62619756,34171.0,34170.0,0.50098251]
[1625463439504,3.62619756,34171.0,34170.0,0.44198251]
[1625463439704,3.62619756,34171.0,34170.0,0.50098251]
[1625463439807,3.64084674,34171.0,34170.0,0.50098251]
[1625463440155,3.64084674,34171.0,34170.0,0.44198251]
[1625463440356,3.64084674,34171.0,34170.0,0.50098251]
[1625463440456,3.94936674,34171.0,34170.0,0.44198251]
[1625463440711,3.93471756,34171.0,34170.0,0.44198251]
[1625463441159,3.93471756,34171.0,34170.0,0.50098251]
[1625463441259,3.94936681,34171.0,34170.0,0.50098251]
[1625463441359,3.94936681,34171.0,34170.0,0.44198251]
[1625463441562,3.94936681,34171.0,34170.0,0.50098251]
[1625463441762,3.93471756,34171.0,34170.0,0.44198251]
[1625463441863,3.93471756,34171.0,34170.0,0.50098251]
[1625463441963,3.93471756,34171.0,34170.0,0.44198251]
[1625463442061,3.94936707,34171.0,34170.0,0.44198251]
[1625463443517,3.94936707,34171.0,34170.0,0.50098251]
[1625463444170,3.62619756,34171.0,34170.0,0.50098251]
[1625463444722,3.62619756,34171.0,34170.0,0.159]
[1625463445223,3.62619756,34171.0,34170.0,0.22232551]
[1625463445324,3.62619756,34171.0,34170.0,0.49764551]
[1625463445624,2.24482767,34171.0,34170.0,2.73062979]
[1625463446022,2.24482767,34171.0,34170.0,2.97120523]
[1625463446823,2.24482767,34171.0,34170.0,6.66490523]
[1625463447074,1.03610743,34171.0,34170.0,6.66490523]
[1625463447579,1.03610743,34171.0,34170.0,8.03840061]
[1625463448077,1.03610743,34171.0,34170.0,4.34470061]
[1625463448728,2.24635702,34171.0,34170.0,1.76882908]
[1625463449078,3.62953673,34171.0,34170.0,1.76882908]
[1625463449731,2.24635702,34171.0,34170.0,2.97278192]
[1625463455648,1.03610743,34171.0,34170.0,2.97278192]
[1625463455951,1.03610743,34171.0,34170.0,7.95898192]
[1625463456553,1.03610743,34171.0,34170.0,9.33309105]
[1625463456953,0.3458804,34171.0,34170.0,9.33309105]
[1625463457505,0.43247928,34171.0,34170.0,10.87884593]
[1625463458959,0.08659888,34171.0,34170.0,10.87884593]
[1625463460011,0.08656717,34172.0,34170.0,10.87884593]
[1625463460367,0.08656717,34172.0,34171.0,0.00432592]
[1625463460465,0.08656717,34172.0,34171.0,0.12232592]
[1625463460564,0.43231951,34172.0,34171.0,3.72566863]
[1625463461013,0.08656717,34172.0,34171.0,3.72566863]
[1625463461263,0.08656717,34172.0,34171.0,3.82566863]
[1625463462327,0.28610085,34173.0,34171.0,3.82566863]
[1625463462419,0.15310085,34173.0,34171.0,3.82566863]
[1625463462767,0.15310085,34173.0,34172.0,0.00432575]
[1625463462871,0.15310085,34173.0,34172.0,0.06332575]
[1625463462969,0.15310085,34173.0,34172.0,0.12232575]
[1625463463118,1.03859324,34176.0,34172.0,3.72531457]
[1625463463620,1.03859324,34176.0,34175.0,0.1]
[1625463463724,0.002,34176.0,34175.0,2.44731446]
[1625463464127,0.002,34176.0,34175.0,2.45164031]
[1625463464223,0.002,34176.0,34175.0,2.93279119]
[1625463464328,1.03829737,34176.0,34175.0,2.93279119]
[1625463465075,1.03829737,34176.0,34175.0,1.7323911]
[1625463465675,2.24715694,34176.0,34175.0,1.7323911]
[1625463466827,1.03829737,34176.0,34175.0,1.7323911]
[1625463467828,2.24705349,34176.0,34175.0,0.70347673]
[1625463467928,2.24705349,34176.0,34175.0,0.64015088]
[1625463467929,6.97145349,34176.0,34175.0,0.64015088]
[1625463468127,6.98610032,34176.0,34175.0,0.58115088]
[1625463468378,8.36740951,34176.0,34175.0,0.58115088]
[1625463469131,8.67872951,34176.0,34175.0,0.58115088]
[1625463469382,3.95432951,34176.0,34175.0,0.58115088]
[1625463471989,4.64517038,34176.0,34175.0,0.58115088]
[1625463476101,6.20015013,34176.0,34175.0,0.58115088]
[1625463478258,6.19815013,34176.0,34175.0,0.58115088]
[1625463478358,4.64317038,34176.0,34175.0,0.58115088]
[1625463478959,6.19864628,34176.0,34175.0,0.58115088]
[1625463480461,4.64317038,34176.0,34175.0,0.75214752]
[1625463484018,4.04317038,34176.0,34175.0,0.75214752]
[1625463485023,4.04317038,34176.0,34175.0,0.58115088]
[1625463485373,4.04317038,34176.0,34175.0,0.58547815]
[1625463485873,4.04317038,34176.0,34175.0,0.58115088]
[1625463486177,4.04317038,34176.0,34175.0,0.75215223]
[1625463487077,4.04317038,34176.0,34175.0,0.58115088]
[1625463487728,4.04317038,34176.0,34175.0,0.58547815]
[1625463487980,4.04317038,34176.0,34175.0,1.26959393]
[1625463488282,4.04317038,34176.0,34175.0,0.58115088]
[1625463489284,4.04317038,34176.0,34175.0,1.26515118]
[1625463489687,4.04317038,34176.0,34175.0,0.58115088]
[1625463489886,4.04317038,34176.0,34175.0,0.58547816]
[1625463490086,4.04317038,34176.0,34175.0,1.26972918]
[1625463491940,8.85767038,34176.0,34175.0,1.26972918]
[1625463492143,4.04317038,34176.0,34175.0,1.26972918]
[1625463493955,4.56219591,34176.0,34175.0,1.78348685]
[1625463496460,4.56219591,34176.0,34175.0,1.84248685]
[1625463496861,4.25087591,34176.0,34175.0,1.84248685]
[1625463497063,4.25087591,34176.0,34175.0,1.90148685]
[1625463497312,4.25087591,34176.0,34175.0,6.23148685]
[1625463497713,2.86956672,34176.0,34175.0,7.42920605]
[1625463497813,2.86956672,34176.0,34175.0,3.09920605]
[1625463499263,2.86956672,34176.0,34175.0,4.46818356]
[1625463502525,1.6608106,34176.0,34175.0,4.46818356]
[1625463502623,1.64616377,34176.0,34175.0,4.46818356]
[1625463502925,1.66080346,34176.0,34175.0,4.46818356]
[1625463503025,2.87186174,34176.0,34175.0,4.46818356]
[1625463503124,2.85722205,34176.0,34175.0,4.46818356]
[1625463503475,1.64616377,34176.0,34175.0,4.46818356]
[1625463504077,2.85712619,34176.0,34175.0,4.46818356]
[1625463504627,1.64616377,34176.0,34175.0,4.46818356]
[1625463505131,2.85724225,34176.0,34175.0,4.46818356]
[1625463505827,1.64616377,34176.0,34175.0,4.46818356]
[1625463510185,1.2098664,34176.0,34175.0,4.46818356]
[1625463511588,0.51902553,34176.0,34175.0,6.01788548]
[1625463512137,0.17307158,34176.0,34175.0,6.01788548]
[1625463512792,0.5188661,34176.0,34175.0,6.01788548]
[1625463513341,1.2106442,34176.0,34175.0,4.46818356]
[1625463514394,1.2106442,34176.0,34175.0,5.5005764]
[1625463514645,1.2106442,34176.0,34175.0,10.4376764]
[1625463515549,1.2106442,34176.0,34175.0,5.5005764]
[1625463516352,1.2106442,34176.0,34175.0,9.0975764]
[1625463517153,1.2106442,34176.0,34175.0,5.5005764]
[1625463518008,0.5188661,34176.0,34175.0,5.5005764]
[1625463518608,0.5188661,34176.0,34175.0,7.0470602]
[1625463518708,0.5188661,34176.0,34175.0,7.3451102]
[1625463519461,0.1730258,34176.0,34175.0,7.3451102]
[1625463520464,0.1730258,34176.0,34175.0,7.0470602]
[1625463521166,0.51868603,34176.0,34175.0,5.5005764]
[1625463523370,1.21017737,34176.0,34175.0,5.5005764]
[1625463525571,0.51868603,34176.0,34175.0,5.5005764]
[1625463528279,0.17296707,34176.0,34175.0,5.5005764]
[1625463530034,0.17296707,34176.0,34175.0,5.7343064]
[1625463530637,0.17295425,34177.0,34175.0,7.27612913]
[1625463531037,0.17295425,34177.0,34176.0,4.79562048]
[1625463531139,0.17295425,34177.0,34176.0,4.91795198]
[1625463531789,0.5185374,34177.0,34176.0,4.91795198]
[1625463531990,0.5185374,34177.0,34176.0,5.01795198]
[1625463532544,0.5185374,34177.0,34176.0,5.25852742]
[1625463532742,1.20983583,34178.0,34176.0,5.25852742]
[1625463533094,1.20983583,34178.0,34177.0,4.79393928]
[1625463533193,1.20983583,34178.0,34177.0,4.85293928]
[1625463533294,1.20983583,34178.0,34177.0,4.9162709]
[1625463533497,1.22445783,34178.0,34177.0,4.9162709]
[1625463533795,1.20983583,34178.0,34177.0,4.9162709]
[1625463533948,1.20983583,34178.0,34177.0,5.0162709]
[1625463534049,0.51851757,34178.0,34177.0,0.70591923]
[1625463534150,0.51851757,34178.0,34170.0,1.71477284]
[1625463534251,0.89171757,34178.0,34170.0,1.71477284]
[1625463534354,0.96534128,34178.0,34170.0,1.71477284]
[1625463534558,0.03467372,34177.0,34171.0,0.00433309]
[1625463534652,4.4242,34173.0,34171.0,0.00433309]
[1625463534752,4.4832,34173.0,34171.0,0.00433309]
[1625463534852,0.118,34173.0,34171.0,0.00433309]
[1625463535153,0.118,34173.0,34172.0,0.17151001]
[1625463535356,0.116,34173.0,34172.0,0.17551001]
[1625463535702,0.13063039,34173.0,34172.0,0.17551001]
[1625463535807,0.13063039,34173.0,34172.0,0.004]
[1625463536603,1.09293215,34173.0,34172.0,0.004]
[1625463538257,1.09293215,34173.0,34170.0,0.002]
[1625463538558,0.01463069,34172.0,34170.0,0.002]
[1625463538758,0.07363069,34172.0,34170.0,0.002]
[1625463539161,0.059,34172.0,34170.0,0.002]
[1625463546480,1.55395968,34171.0,34170.0,0.002]
[1625463546580,1.95321968,34171.0,34170.0,0.002]
[1625463547282,1.95321968,34171.0,34169.0,0.002]
[1625463547782,0.39926,34171.0,34169.0,0.002]
[1625463548584,1.95285836,34171.0,34169.0,0.002]
[1625463549134,1.38078057,34170.0,34169.0,0.002]
[1625463549234,1.43978057,34170.0,34169.0,0.002]
[1625463553693,1.43978057,34170.0,34169.0,3.7059]
[1625463554492,2.64745485,34170.0,34169.0,0.002]
[1625463554695,2.64745485,34170.0,34169.0,0.24257544]
[1625463556295,2.64745485,34170.0,34169.0,0.24057544]
[1625463557148,2.64745485,34170.0,34169.0,0.29957544]
[1625463557251,2.64745485,34170.0,34169.0,0.58595544]
[1625463557449,2.58845485,34170.0,34169.0,0.58595544]
[1625463557850,1.44790795,34173.0,34169.0,0.58595544]
[1625463557950,1.50690795,34173.0,34169.0,0.58595544]
[1625463558152,1.26633251,34173.0,34169.0,0.58595544]
[1625463558254,0.059,34173.0,34172.0,0.17136779]
[1625463558453,0.059,34173.0,34172.0,0.23036779]